[Event "Early-Titled-Tuesday-Blitz-April-02-2024"]
[Site "Chess.com"]
[Date "2024.04.02"]
[Round "4"]
[White "Vse_po_kaify"]
[Black "Martial2008"]
[Result "1-0"]
[WhiteElo "2495"]
[BlackElo "2629"]
[TimeControl "180+1"]
[EndTime "8:39:36 PDT"]
[Termination "Vse_po_kaify won by resignation"]

1. e4 {[%clk 0:03:00]} 1... e5 {[%clk 0:02:58.6]} 2. Nf3 {[%clk 0:02:59.7]} 2...
Nf6 {[%clk 0:02:57.9]} 3. Nc3 {[%clk 0:02:59.8]} 3... Nc6 {[%clk 0:02:57.8]} 4.
Be2 {[%clk 0:02:58.2]} 4... d5 {[%clk 0:02:46.4]} 5. exd5 {[%clk 0:02:58.2]}
5... Nxd5 {[%clk 0:02:46.1]} 6. O-O {[%clk 0:02:58.4]} 6... Be7 {[%clk
0:02:42.1]} 7. d4 {[%clk 0:02:58.1]} 7... exd4 {[%clk 0:02:35.8]} 8. Nxd4 {[%clk
0:02:55.3]} 8... Nxc3 {[%clk 0:02:33.4]} 9. bxc3 {[%clk 0:02:54.4]} 9... Bd7
{[%clk 0:02:34]} 10. Rb1 {[%clk 0:02:51.4]} 10... Nxd4 {[%clk 0:02:29.8]} 11.
Qxd4 {[%clk 0:02:49.2]} 11... O-O {[%clk 0:02:28.4]} 12. Rxb7 {[%clk 0:02:45]}
12... Bc6 {[%clk 0:02:26.6]} 13. Qxd8 {[%clk 0:02:42.3]} 13... Bxd8 {[%clk
0:02:25.9]} 14. Rb2 {[%clk 0:02:40.2]} 14... Bf6 {[%clk 0:02:25.6]} 15. Bd2
{[%clk 0:02:28.3]} 15... Rab8 {[%clk 0:02:21.7]} 16. Rfb1 {[%clk 0:02:23]} 16...
Rb6 {[%clk 0:02:19.3]} 17. Be3 {[%clk 0:02:18.9]} 17... Rxb2 {[%clk 0:02:18.4]}
18. Rxb2 {[%clk 0:02:19.1]} 18... Bxc3 {[%clk 0:02:18.9]} 19. Rb3 {[%clk
0:02:18.7]} 19... Ba5 {[%clk 0:02:14.6]} 20. Bxa7 {[%clk 0:02:16.9]} 20... Ra8
{[%clk 0:01:57]} 21. Be3 {[%clk 0:02:06.9]} 21... Ba4 {[%clk 0:01:56.9]} 22. Rb7
{[%clk 0:01:22.3]} 22... Bxc2 {[%clk 0:01:55.1]} 23. Bc4 {[%clk 0:01:21.5]}
23... Be4 {[%clk 0:01:53.2]} 24. Ra7 {[%clk 0:01:16.3]} 24... Rxa7 {[%clk
0:01:44]} 25. Bxa7 {[%clk 0:01:16.2]} 25... Bb6 {[%clk 0:01:41.9]} 26. Bxb6
{[%clk 0:01:06.9]} 26... cxb6 {[%clk 0:01:42.8]} 27. f3 {[%clk 0:01:07.6]} 27...
Bc6 {[%clk 0:01:41.9]} 28. Kf2 {[%clk 0:01:07.8]} 28... Kf8 {[%clk 0:01:42]} 29.
Ke3 {[%clk 0:01:08.3]} 29... Ke7 {[%clk 0:01:42.3]} 30. Kd4 {[%clk 0:01:08.8]}
30... f6 {[%clk 0:01:42.7]} 31. Bd3 {[%clk 0:01:08.7]} 31... h6 {[%clk
0:01:39.1]} 32. Be4 {[%clk 0:01:08.8]} 32... Bd7 {[%clk 0:01:37.2]} 33. a3
{[%clk 0:01:07.4]} 33... Kd6 {[%clk 0:01:37.1]} 34. f4 {[%clk 0:01:06.2]} 34...
Bb5 {[%clk 0:01:32.6]} 35. g3 {[%clk 0:01:06]} 35... Bf1 {[%clk 0:01:32.7]} 36.
h4 {[%clk 0:01:05.5]} 36... Ba6 {[%clk 0:01:31.3]} 37. Bf3 {[%clk 0:00:59.9]}
37... Bc8 {[%clk 0:01:31.1]} 38. Be4 {[%clk 0:00:59.3]} 38... Be6 {[%clk
0:01:31.2]} 39. Bf3 {[%clk 0:00:59.2]} 39... Kc7 {[%clk 0:01:28.2]} 40. Bd5
{[%clk 0:00:57.2]} 40... Bd7 {[%clk 0:01:28]} 41. Bf3 {[%clk 0:00:49.5]} 41...
Kd6 {[%clk 0:01:25.1]} 42. Be4 {[%clk 0:00:49.6]} 42... Bb5 {[%clk 0:01:25]} 43.
Bf3 {[%clk 0:00:49.8]} 43... Kc7 {[%clk 0:01:24.4]} 44. Ba8 {[%clk 0:00:47.1]}
44... Kb8 {[%clk 0:01:24.5]} 45. Be4 {[%clk 0:00:37.1]} 45... Ka7 {[%clk
0:01:17.1]} 46. Kd5 {[%clk 0:00:35.2]} 46... Ka6 {[%clk 0:01:16.5]} 47. Ke6
{[%clk 0:00:35.4]} 47... Bc4+ {[%clk 0:01:16.1]} 48. Ke7 {[%clk 0:00:34.6]}
48... Kb5 {[%clk 0:01:16.3]} 49. Bc2 {[%clk 0:00:34.4]} 49... Kc5 {[%clk
0:01:13.5]} 50. Kf8 {[%clk 0:00:34.7]} 50... g5 {[%clk 0:01:13.6]} 51. Kg7
{[%clk 0:00:34.1]} 51... Kd4 {[%clk 0:01:09.1]} 52. Kxf6 {[%clk 0:00:31.8]}
52... gxf4 {[%clk 0:01:07.8]} 53. gxf4 {[%clk 0:00:32.1]} 53... Kc3 {[%clk
0:00:53.6]} 54. Bd1 {[%clk 0:00:32.2]} 54... Kd2 {[%clk 0:00:51.3]} 55. Bh5
{[%clk 0:00:28.1]} 55... Ke3 {[%clk 0:00:51]} 56. f5 {[%clk 0:00:27.8]} 56...
Kf4 {[%clk 0:00:51]} 57. Bg6 {[%clk 0:00:22.6]} 57... Kg4 {[%clk 0:00:39.8]} 58.
h5 {[%clk 0:00:22.7]} 58... Bd3 {[%clk 0:00:27.2]} 59. Ke5 {[%clk 0:00:23]}
59... Kg5 {[%clk 0:00:26.9]} 60. f6 {[%clk 0:00:21.6]} 60... Bxg6 {[%clk
0:00:18.1]} 61. hxg6 {[%clk 0:00:21.9]} 61... Kxg6 {[%clk 0:00:19]} 62. Ke6
{[%clk 0:00:22.4]} 62... h5 {[%clk 0:00:19.9]} 63. f7 {[%clk 0:00:22.7]} 63...
h4 {[%clk 0:00:20.8]} 64. f8=Q {[%clk 0:00:22.1]} 64... h3 {[%clk 0:00:21.7]}
1-0

[Event "Early-Titled-Tuesday-Blitz-April-02-2024"]
[Site "Chess.com"]
[Date "2024.04.02"]
[Round "4"]
[White "AlphaGoosee"]
[Black "KVAIDAN"]
[Result "1-0"]
[WhiteElo "2527"]
[BlackElo "2324"]
[TimeControl "180+1"]
[EndTime "8:39:39 PDT"]
[Termination "AlphaGoosee won by checkmate"]

1. e4 {[%clk 0:03:00.9]} 1... e5 {[%clk 0:02:55.3]} 2. Nf3 {[%clk 0:03:01.1]}
2... d5 {[%clk 0:02:50.7]} 3. exd5 {[%clk 0:02:55.1]} 3... e4 {[%clk 0:02:49.5]}
4. Qe2 {[%clk 0:02:54.9]} 4... Nf6 {[%clk 0:02:49.8]} 5. Nc3 {[%clk 0:02:55.1]}
5... Be7 {[%clk 0:02:48.4]} 6. Nd4 {[%clk 0:02:54.2]} 6... O-O {[%clk
0:02:45.3]} 7. d3 {[%clk 0:02:49.7]} 7... Bb4 {[%clk 0:02:40]} 8. Bd2 {[%clk
0:02:43.6]} 8... Bxc3 {[%clk 0:02:33.3]} 9. Bxc3 {[%clk 0:02:36.8]} 9... Nxd5
{[%clk 0:02:33.7]} 10. O-O-O {[%clk 0:02:35.7]} 10... Nxc3 {[%clk 0:02:33.2]}
11. bxc3 {[%clk 0:02:36.6]} 11... c5 {[%clk 0:02:32.9]} 12. Nb3 {[%clk
0:02:33.3]} 12... exd3 {[%clk 0:02:29.1]} 13. Rxd3 {[%clk 0:02:27.4]} 13... Qb6
{[%clk 0:02:26]} 14. Rg3 {[%clk 0:02:23.9]} 14... Be6 {[%clk 0:02:19]} 15. h4
{[%clk 0:02:08.5]} 15... Nd7 {[%clk 0:02:14.5]} 16. h5 {[%clk 0:02:07]} 16... h6
{[%clk 0:02:14.4]} 17. Qe3 {[%clk 0:02:00.8]} 17... Kh8 {[%clk 0:02:09.8]} 18.
Rh4 {[%clk 0:01:54.7]} 18... Rae8 {[%clk 0:02:06.5]} 19. Re4 {[%clk 0:01:40.9]}
19... Nf6 {[%clk 0:01:55.2]} 20. Re5 {[%clk 0:01:38.1]} 20... Nd5 {[%clk
0:01:52.5]} 21. Qxc5 {[%clk 0:01:34.1]} 21... Qd8 {[%clk 0:01:46]} 22. Qd4
{[%clk 0:01:23.2]} 22... Qf6 {[%clk 0:01:40.6]} 23. Rf3 {[%clk 0:01:05.8]} 23...
Qd8 {[%clk 0:01:32.3]} 24. Bc4 {[%clk 0:01:00.8]} 24... Nc7 {[%clk 0:01:10.6]}
25. Bd3 {[%clk 0:00:47.5]} 25... Bxb3 {[%clk 0:00:52]} 26. Qxd8 {[%clk
0:00:44.3]} 26... Rxd8 {[%clk 0:00:52]} 27. axb3 {[%clk 0:00:43.9]} 27... f6
{[%clk 0:00:52.1]} 28. Re7 {[%clk 0:00:41.5]} 28... Nd5 {[%clk 0:00:40.6]} 29.
Rxb7 {[%clk 0:00:38.3]} 29... a5 {[%clk 0:00:39.7]} 30. Bb5 {[%clk 0:00:32.5]}
30... Rb8 {[%clk 0:00:37.2]} 31. Rxb8 {[%clk 0:00:29.8]} 31... Rxb8 {[%clk
0:00:36.5]} 32. Bc6 {[%clk 0:00:30.5]} 32... Ne7 {[%clk 0:00:36]} 33. Ba4 {[%clk
0:00:29.1]} 33... Rc8 {[%clk 0:00:32.7]} 34. c4 {[%clk 0:00:20]} 34... Rc5
{[%clk 0:00:32.6]} 35. Be8 {[%clk 0:00:20.2]} 35... Kg8 {[%clk 0:00:28.7]} 36.
Rd3 {[%clk 0:00:18.9]} 36... Kf8 {[%clk 0:00:28.7]} 37. Bg6 {[%clk 0:00:18.6]}
37... Rc8 {[%clk 0:00:27.4]} 38. Rd7 {[%clk 0:00:18.3]} 38... Nc6 {[%clk
0:00:26.9]} 39. Rf7+ {[%clk 0:00:18.1]} 39... Kg8 {[%clk 0:00:27.4]} 40. Rb7
{[%clk 0:00:18.1]} 40... Ne5 {[%clk 0:00:27.6]} 41. Kb2 {[%clk 0:00:17.8]} 41...
a4 {[%clk 0:00:27.4]} 42. f4 {[%clk 0:00:15.3]} 42... Ng4 {[%clk 0:00:22]} 43.
bxa4 {[%clk 0:00:15.4]} 43... Ne3 {[%clk 0:00:21.8]} 44. c5 {[%clk 0:00:16]}
44... Kf8 {[%clk 0:00:19.5]} 45. Rb5 {[%clk 0:00:15.7]} 45... Nc4+ {[%clk
0:00:18.6]} 46. Kb3 {[%clk 0:00:15.3]} 46... Nd2+ {[%clk 0:00:18.5]} 47. Kb4
{[%clk 0:00:15.8]} 47... Ne4 {[%clk 0:00:18.7]} 48. a5 {[%clk 0:00:16]} 48...
Ng3 {[%clk 0:00:14.3]} 49. a6 {[%clk 0:00:15.7]} 49... Ne2 {[%clk 0:00:14.7]}
50. a7 {[%clk 0:00:16.2]} 50... Nd4 {[%clk 0:00:12.9]} 51. Rb8 {[%clk
0:00:17.1]} 51... Ke7 {[%clk 0:00:12.9]} 52. Rxc8 {[%clk 0:00:17]} 52... Nc6+
{[%clk 0:00:13.3]} 53. Rxc6 {[%clk 0:00:17.4]} 53... Kd7 {[%clk 0:00:13.3]} 54.
Rb6 {[%clk 0:00:18.3]} 54... f5 {[%clk 0:00:11.7]} 55. a8=Q {[%clk 0:00:19.2]}
55... Kc7 {[%clk 0:00:12.1]} 56. Qa7+ {[%clk 0:00:20.1]} 56... Kd8 {[%clk
0:00:12]} 57. Rb8# {[%clk 0:00:21]} 1-0

[Event "Early-Titled-Tuesday-Blitz-April-02-2024"]
[Site "Chess.com"]
[Date "2024.04.02"]
[Round "4"]
[White "MyDream003"]
[Black "Beca95"]
[Result "1-0"]
[WhiteElo "2827"]
[BlackElo "2941"]
[TimeControl "180+1"]
[EndTime "8:39:40 PDT"]
[Termination "MyDream003 won by resignation"]

1. e4 {[%clk 0:03:00.9]} 1... c5 {[%clk 0:02:59.8]} 2. Nf3 {[%clk 0:03:01]} 2...
d6 {[%clk 0:03:00.3]} 3. d4 {[%clk 0:02:59.5]} 3... cxd4 {[%clk 0:03:01.2]} 4.
Nxd4 {[%clk 0:03:00.4]} 4... Nf6 {[%clk 0:03:01.7]} 5. Nc3 {[%clk 0:03:00.8]}
5... a6 {[%clk 0:03:02.3]} 6. f3 {[%clk 0:03:01.1]} 6... e5 {[%clk 0:03:02.6]}
7. Nb3 {[%clk 0:03:00.6]} 7... Be6 {[%clk 0:03:01.5]} 8. Be3 {[%clk 0:02:59.4]}
8... Be7 {[%clk 0:03:01.4]} 9. Qd2 {[%clk 0:02:59.4]} 9... h5 {[%clk 0:03:01.8]}
10. Be2 {[%clk 0:02:58.5]} 10... Nbd7 {[%clk 0:03:01.6]} 11. Nd5 {[%clk
0:02:57.9]} 11... Bxd5 {[%clk 0:03:01.8]} 12. exd5 {[%clk 0:02:58.8]} 12... Qc7
{[%clk 0:03:02.2]} 13. c4 {[%clk 0:02:57.5]} 13... a5 {[%clk 0:03:01.8]} 14. Rc1
{[%clk 0:02:56.9]} 14... a4 {[%clk 0:03:01.7]} 15. Na1 {[%clk 0:02:57.2]} 15...
Qa5 {[%clk 0:03:01.8]} 16. Qxa5 {[%clk 0:02:52.6]} 16... Rxa5 {[%clk 0:03:02.7]}
17. Nc2 {[%clk 0:02:52.9]} 17... h4 {[%clk 0:03:00.5]} 18. Na3 {[%clk
0:02:51.3]} 18... Nc5 {[%clk 0:02:59.2]} 19. Nb5 {[%clk 0:02:46.7]} 19... b6
{[%clk 0:02:58.8]} 20. Kd2 {[%clk 0:02:37.8]} 20... Nh5 {[%clk 0:02:52.7]} 21.
Rhd1 {[%clk 0:02:27.7]} 21... f5 {[%clk 0:02:52]} 22. Kc2 {[%clk 0:02:24.3]}
22... Kd7 {[%clk 0:02:51]} 23. Bf1 {[%clk 0:02:15.5]} 23... g5 {[%clk
0:02:49.5]} 24. Bd2 {[%clk 0:02:12.8]} 24... Raa8 {[%clk 0:02:43.4]} 25. Bc3
{[%clk 0:02:06.5]} 25... Bf6 {[%clk 0:02:30.7]} 26. Re1 {[%clk 0:01:49.6]} 26...
Rhe8 {[%clk 0:02:28.9]} 27. Rcd1 {[%clk 0:01:39.5]} 27... Nf4 {[%clk 0:02:24.3]}
28. g3 {[%clk 0:01:36.4]} 28... hxg3 {[%clk 0:02:17.8]} 29. hxg3 {[%clk
0:01:37.3]} 29... Nh5 {[%clk 0:02:17.7]} 30. g4 {[%clk 0:01:36]} 30... fxg4
{[%clk 0:02:15]} 31. fxg4 {[%clk 0:01:36.9]} 31... Nf4 {[%clk 0:02:15.3]} 32.
Bd2 {[%clk 0:01:24.5]} 32... Rh8 {[%clk 0:02:14.5]} 33. Nc3 {[%clk 0:01:12]}
33... Rh2 {[%clk 0:02:03]} 34. Kb1 {[%clk 0:01:09.4]} 34... a3 {[%clk
0:01:57.7]} 35. b4 {[%clk 0:01:07.2]} 35... Na4 {[%clk 0:01:48]} 36. Ne4 {[%clk
0:01:06.1]} 36... Be7 {[%clk 0:01:48.2]} 37. Bc1 {[%clk 0:01:03.1]} 37... b5
{[%clk 0:01:44.6]} 38. c5 {[%clk 0:01:00]} 38... dxc5 {[%clk 0:01:28.2]} 39.
Bxb5+ {[%clk 0:00:59.8]} 39... Kd8 {[%clk 0:01:28.5]} 40. d6 {[%clk 0:00:57.7]}
40... Bf8 {[%clk 0:01:28.3]} 41. Rh1 {[%clk 0:00:49.7]} 41... Rxh1 {[%clk
0:01:21.9]} 42. Rxh1 {[%clk 0:00:50.6]} 42... Rb8 {[%clk 0:01:22.1]} 43. Bxa4
{[%clk 0:00:42]} 43... Rxb4+ {[%clk 0:01:21.7]} 44. Bb3 {[%clk 0:00:42.1]} 44...
Rxe4 {[%clk 0:00:53.6]} 45. Rh8 {[%clk 0:00:41.3]} 45... Kd7 {[%clk 0:00:53.9]}
46. Rxf8 {[%clk 0:00:40.2]} 46... Re1 {[%clk 0:00:54]} 47. Kc2 {[%clk
0:00:35.5]} 47... Kxd6 {[%clk 0:00:52.9]} 48. Bxa3 {[%clk 0:00:34.8]} 48... Re2+
{[%clk 0:00:53.2]} 49. Kd1 {[%clk 0:00:30.7]} 49... Rg2 {[%clk 0:00:53.3]} 50.
Rd8+ {[%clk 0:00:25.9]} 50... Kc7 {[%clk 0:00:53.4]} 51. Re8 {[%clk 0:00:21.8]}
51... Kd6 {[%clk 0:00:53.5]} 52. Rd8+ {[%clk 0:00:17.7]} 52... Kc7 {[%clk
0:00:53.5]} 53. Rg8 {[%clk 0:00:18.1]} 53... e4 {[%clk 0:00:49]} 54. Bxc5 {[%clk
0:00:16.9]} 54... Kc6 {[%clk 0:00:45.3]} 55. Be3 {[%clk 0:00:16.2]} 55... Rg3
{[%clk 0:00:45.6]} 56. Kd2 {[%clk 0:00:14.6]} 56... Rg2+ {[%clk 0:00:45.6]} 57.
Kc3 {[%clk 0:00:14.4]} 57... Rxg4 {[%clk 0:00:40.3]} 58. Bxf4 {[%clk 0:00:12.3]}
58... Rxf4 {[%clk 0:00:40.4]} 59. Rxg5 {[%clk 0:00:12.9]} 59... e3 {[%clk
0:00:40.8]} 60. Kd3 {[%clk 0:00:12.6]} 60... e2 {[%clk 0:00:40.2]} 61. Kxe2
{[%clk 0:00:12.1]} 61... Rf5 {[%clk 0:00:40.8]} 62. Rxf5 {[%clk 0:00:11.9]} 1-0

[Event "Early-Titled-Tuesday-Blitz-April-02-2024"]
[Site "Chess.com"]
[Date "2024.04.02"]
[Round "4"]
[White "ilqar_74"]
[Black "SahibSinghKnight"]
[Result "1-0"]
[WhiteElo "2808"]
[BlackElo "2592"]
[TimeControl "180+1"]
[EndTime "8:39:41 PDT"]
[Termination "ilqar_74 won by resignation"]

1. e4 {[%clk 0:03:00.9]} 1... e6 {[%clk 0:02:57.4]} 2. d4 {[%clk 0:02:59.9]}
2... d5 {[%clk 0:02:56]} 3. Nc3 {[%clk 0:03:00.4]} 3... Nf6 {[%clk 0:02:55.5]}
4. e5 {[%clk 0:03:00.7]} 4... Nfd7 {[%clk 0:02:55.7]} 5. f4 {[%clk 0:03:01.4]}
5... c5 {[%clk 0:02:56.3]} 6. Nf3 {[%clk 0:03:02]} 6... Nc6 {[%clk 0:02:56.9]}
7. Be3 {[%clk 0:03:02.3]} 7... Be7 {[%clk 0:02:57.4]} 8. Be2 {[%clk 0:03:02.2]}
8... b6 {[%clk 0:02:48.7]} 9. O-O {[%clk 0:03:01.7]} 9... O-O {[%clk 0:02:48.5]}
10. Nb1 {[%clk 0:02:57]} 10... f6 {[%clk 0:02:45.6]} 11. c3 {[%clk 0:02:55.8]}
11... a5 {[%clk 0:02:36.2]} 12. Nbd2 {[%clk 0:02:55.4]} 12... a4 {[%clk
0:02:36.4]} 13. a3 {[%clk 0:02:54.3]} 13... Ba6 {[%clk 0:02:33.1]} 14. Bxa6
{[%clk 0:02:46.2]} 14... Rxa6 {[%clk 0:02:32.6]} 15. Qe2 {[%clk 0:02:46.8]}
15... c4 {[%clk 0:02:21.7]} 16. g4 {[%clk 0:02:45.8]} 16... fxe5 {[%clk
0:02:20.9]} 17. Nxe5 {[%clk 0:02:45]} 17... Ndxe5 {[%clk 0:02:19.9]} 18. fxe5
{[%clk 0:02:45.7]} 18... Bg5 {[%clk 0:02:11.3]} 19. Rxf8+ {[%clk 0:02:38.4]}
19... Kxf8 {[%clk 0:02:12]} 20. Rf1+ {[%clk 0:02:36.7]} 20... Kg8 {[%clk
0:02:11.2]} 21. Bxg5 {[%clk 0:02:14.6]} 21... Qxg5 {[%clk 0:02:11.6]} 22. Qf3
{[%clk 0:02:13.9]} 22... Qe7 {[%clk 0:02:11.1]} 23. Nxc4 {[%clk 0:02:12.3]}
23... Nxd4 {[%clk 0:01:48.9]} 24. cxd4 {[%clk 0:02:11.4]} 24... dxc4 {[%clk
0:01:49.8]} 25. Qc6 {[%clk 0:02:05.7]} 25... Qd8 {[%clk 0:01:09.9]} 26. Qxe6+
{[%clk 0:02:05.1]} 26... Kh8 {[%clk 0:01:10]} 27. d5 {[%clk 0:02:03.3]} 27... h5
{[%clk 0:01:05.7]} 28. d6 {[%clk 0:02:00.5]} 28... b5 {[%clk 0:00:58.5]} 29. Qf5
{[%clk 0:01:55.4]} 29... Qb6+ {[%clk 0:00:53]} 30. Qf2 {[%clk 0:01:55.1]} 30...
Qc6 {[%clk 0:00:45.3]} 31. Qf8+ {[%clk 0:01:54.7]} 31... Kh7 {[%clk 0:00:45.4]}
32. Qf5+ {[%clk 0:01:54.6]} 32... Kg8 {[%clk 0:00:43.2]} 33. gxh5 {[%clk
0:01:46.3]} 33... Qc5+ {[%clk 0:00:40.8]} 34. Rf2 {[%clk 0:01:45]} 34... Qd4
{[%clk 0:00:35.7]} 35. Qf4 {[%clk 0:01:13.4]} 35... Qd1+ {[%clk 0:00:31.8]} 36.
Kg2 {[%clk 0:01:13.8]} 36... Qd5+ {[%clk 0:00:26.2]} 37. Rf3 {[%clk 0:01:11.4]}
37... Ra7 {[%clk 0:00:17.2]} 38. Qf8+ {[%clk 0:01:07.2]} 38... Kh7 {[%clk
0:00:17.1]} 39. Qf5+ {[%clk 0:01:02.8]} 39... Kg8 {[%clk 0:00:17]} 40. h4 {[%clk
0:00:57.5]} 40... Rf7 {[%clk 0:00:10.6]} 41. Qc8+ {[%clk 0:00:27.4]} 41... Kh7
{[%clk 0:00:10.4]} 42. Qg4 {[%clk 0:00:06]} 42... Rxf3 {[%clk 0:00:06.1]} 43.
Qxf3 {[%clk 0:00:06.9]} 43... Qxe5 {[%clk 0:00:06.7]} 44. d7 {[%clk 0:00:06.9]}
44... Qxb2+ {[%clk 0:00:06.8]} 45. Kh3 {[%clk 0:00:07]} 45... Qd4 {[%clk
0:00:06.5]} 46. Qf5+ {[%clk 0:00:06.5]} 46... Kg8 {[%clk 0:00:06.7]} 47. Qe6+
{[%clk 0:00:06.7]} 47... Kh7 {[%clk 0:00:06.3]} 48. Qg6+ {[%clk 0:00:07.2]}
48... Kg8 {[%clk 0:00:06.6]} 49. Qe8+ {[%clk 0:00:07.6]} 49... Kh7 {[%clk
0:00:07.3]} 50. d8=Q {[%clk 0:00:08.2]} 50... Qc3+ {[%clk 0:00:07.1]} 51. Kg4
{[%clk 0:00:08.9]} 1-0

[Event "Early-Titled-Tuesday-Blitz-April-02-2024"]
[Site "Chess.com"]
[Date "2024.04.02"]
[Round "4"]
[White "ritanovikova"]
[Black "viktorgen2021"]
[Result "0-1"]
[WhiteElo "2133"]
[BlackElo "2488"]
[TimeControl "180+1"]
[EndTime "8:39:41 PDT"]
[Termination "viktorgen2021 won on time"]

1. e4 {[%clk 0:03:00.5]} 1... g6 {[%clk 0:02:58.7]} 2. d4 {[%clk 0:03:00.4]}
2... Bg7 {[%clk 0:02:58.7]} 3. Be3 {[%clk 0:03:01]} 3... d6 {[%clk 0:02:59.1]}
4. Nf3 {[%clk 0:03:01.1]} 4... c6 {[%clk 0:02:59]} 5. Be2 {[%clk 0:03:01.5]}
5... Nd7 {[%clk 0:02:59.4]} 6. O-O {[%clk 0:03:01.9]} 6... Ngf6 {[%clk
0:03:00.1]} 7. h3 {[%clk 0:03:01.8]} 7... Nxe4 {[%clk 0:02:59.9]} 8. c4 {[%clk
0:02:57.3]} 8... O-O {[%clk 0:02:59.6]} 9. Nc3 {[%clk 0:02:54.4]} 9... Nxc3
{[%clk 0:02:59.6]} 10. bxc3 {[%clk 0:02:55.3]} 10... Qa5 {[%clk 0:02:54.7]} 11.
Qd2 {[%clk 0:02:53.5]} 11... Nf6 {[%clk 0:02:54.3]} 12. Bd3 {[%clk 0:02:51.3]}
12... Bf5 {[%clk 0:02:54.4]} 13. Bxf5 {[%clk 0:02:50.6]} 13... Qxf5 {[%clk
0:02:51.8]} 14. Nh4 {[%clk 0:02:45]} 14... Qa5 {[%clk 0:02:50.8]} 15. Qd3 {[%clk
0:02:41.3]} 15... e5 {[%clk 0:02:49.2]} 16. c5 {[%clk 0:02:39]} 16... exd4
{[%clk 0:02:40.8]} 17. cxd4 {[%clk 0:02:31.6]} 17... dxc5 {[%clk 0:02:41]} 18.
dxc5 {[%clk 0:02:31.4]} 18... Rad8 {[%clk 0:02:39.9]} 19. Qb3 {[%clk 0:02:28.9]}
19... Rd7 {[%clk 0:02:38.5]} 20. Rad1 {[%clk 0:02:24.4]} 20... Nd5 {[%clk
0:02:35.3]} 21. Nf3 {[%clk 0:01:46.3]} 21... Re8 {[%clk 0:02:27.1]} 22. Rd3
{[%clk 0:01:41.6]} 22... Rde7 {[%clk 0:02:07]} 23. Bg5 {[%clk 0:01:37.3]} 23...
f6 {[%clk 0:01:55.9]} 24. Bd2 {[%clk 0:01:15.1]} 24... Qc7 {[%clk 0:01:49.4]}
25. Bc3 {[%clk 0:01:07.7]} 25... h6 {[%clk 0:01:46.9]} 26. Bb2 {[%clk
0:01:06.5]} 26... Kh7 {[%clk 0:01:46.9]} 27. Bd4 {[%clk 0:00:58.9]} 27... Nf4
{[%clk 0:01:46.2]} 28. Rd2 {[%clk 0:00:36.6]} 28... Re2 {[%clk 0:01:44.8]} 29.
Rxe2 {[%clk 0:00:31.2]} 29... Nxe2+ {[%clk 0:01:44.7]} 30. Kh1 {[%clk
0:00:31.7]} 30... Re7 {[%clk 0:01:25]} 31. Be3 {[%clk 0:00:31.5]} 31... Nf4
{[%clk 0:01:22.8]} 32. Qa4 {[%clk 0:00:28.9]} 32... Nd5 {[%clk 0:01:21.9]} 33.
Bd4 {[%clk 0:00:27.5]} 33... a6 {[%clk 0:01:21.4]} 34. Qc2 {[%clk 0:00:25]}
34... Qf4 {[%clk 0:01:19.4]} 35. Qd3 {[%clk 0:00:18]} 35... Qe4 {[%clk 0:01:17]}
36. Qd1 {[%clk 0:00:17.6]} 36... Qf5 {[%clk 0:01:13.4]} 37. Re1 {[%clk 0:00:17]}
37... Qd7 {[%clk 0:01:12.4]} 38. Rxe7 {[%clk 0:00:17.2]} 38... Qxe7 {[%clk
0:01:13.3]} 39. Qc2 {[%clk 0:00:16.2]} 39... f5 {[%clk 0:01:12.9]} 40. Bxg7
{[%clk 0:00:14.7]} 40... Qxg7 {[%clk 0:01:12.7]} 41. Qd2 {[%clk 0:00:14.2]}
41... Qe7 {[%clk 0:01:07.5]} 42. Qc2 {[%clk 0:00:13.3]} 42... Qf6 {[%clk
0:00:56.6]} 43. Qe2 {[%clk 0:00:11.9]} 43... Qe7 {[%clk 0:00:48.6]} 44. Qd2
{[%clk 0:00:10.7]} 44... Kg7 {[%clk 0:00:47.5]} 45. Qd4+ {[%clk 0:00:10.4]}
45... Qf6 {[%clk 0:00:47.4]} 46. Qd2 {[%clk 0:00:08.8]} 46... g5 {[%clk
0:00:46.2]} 47. Nd4 {[%clk 0:00:06.6]} 47... Kg6 {[%clk 0:00:44.4]} 48. Nb3
{[%clk 0:00:06.6]} 48... Qe7 {[%clk 0:00:42.4]} 49. Qc2 {[%clk 0:00:06.3]} 49...
Qe1+ {[%clk 0:00:33.7]} 50. Kh2 {[%clk 0:00:06.6]} 50... Qe5+ {[%clk 0:00:33.6]}
51. Kh1 {[%clk 0:00:06.5]} 51... Nf4 {[%clk 0:00:33.1]} 52. Qd1 {[%clk
0:00:05.5]} 52... Qe4 {[%clk 0:00:26.1]} 53. Qf1 {[%clk 0:00:04.3]} 53... Nd3
{[%clk 0:00:21.2]} 54. f3 {[%clk 0:00:04.2]} 54... Qe3 {[%clk 0:00:20.9]} 0-1